[Event "*** Titled Tuesday Blitz"]
[Site "Chess.com"]
[Date "2021.03.09"]
[Round "6"]
[White "PawnEatingZombie"]
[Black "Loy_Konstantin"]
[Result "0-1"]
[WhiteElo "2231"]
[BlackElo "2362"]
[TimeControl "180+1"]
[EndTime "11:10:11 PST"]
[Termination "Loy_Konstantin won on time"]

1. d4 {[%clk 0:03:00.9]} 1... Nf6 {[%clk 0:02:59.4]} 2. c4 {[%clk 0:03:00.4]}
2... c5 {[%clk 0:02:59.5]} 3. d5 {[%clk 0:03:00]} 3... b5 {[%clk 0:03:00]} 4.
cxb5 {[%clk 0:03:00.9]} 4... a6 {[%clk 0:03:00.5]} 5. e3 {[%clk 0:03:01.7]} 5...
g6 {[%clk 0:02:58.8]} 6. Nc3 {[%clk 0:03:00.3]} 6... Bg7 {[%clk 0:02:58.6]} 7.
a4 {[%clk 0:02:57.3]} 7... O-O {[%clk 0:02:58.1]} 8. Nf3 {[%clk 0:02:56.5]} 8...
Bb7 {[%clk 0:02:57.8]} 9. e4 {[%clk 0:02:50.6]} 9... e6 {[%clk 0:02:52.3]} 10.
Be2 {[%clk 0:02:32.7]} 10... axb5 {[%clk 0:02:43.8]} 11. Bxb5 {[%clk 0:02:30.4]}
11... exd5 {[%clk 0:02:43.9]} 12. exd5 {[%clk 0:02:31.3]} 12... Re8+ {[%clk
0:02:42.7]} 13. Be3 {[%clk 0:02:31.9]} 13... Ng4 {[%clk 0:02:34.5]} 14. O-O
{[%clk 0:02:31.5]} 14... Rxe3 {[%clk 0:02:31.3]} 15. fxe3 {[%clk 0:02:29.2]}
15... Nxe3 {[%clk 0:02:32.2]} 16. Qd3 {[%clk 0:02:17.3]} 16... Nxf1 {[%clk
0:02:32.2]} 17. Rxf1 {[%clk 0:02:17.4]} 17... d6 {[%clk 0:02:28.8]} 18. Ne4
{[%clk 0:02:07.3]} 18... h6 {[%clk 0:02:15.7]} 19. b3 {[%clk 0:01:50]} 19... Na6
{[%clk 0:02:14.1]} 20. Nfd2 {[%clk 0:01:35.3]} 20... Nb4 {[%clk 0:02:09.8]} 21.
Qf3 {[%clk 0:01:34.7]} 21... f5 {[%clk 0:02:07]} 22. Bc6 {[%clk 0:00:44.2]}
22... Bxc6 {[%clk 0:01:51.6]} 23. dxc6 {[%clk 0:00:44.2]} 23... fxe4 {[%clk
0:01:46.5]} 24. Qf7+ {[%clk 0:00:43.7]} 24... Kh7 {[%clk 0:01:44.6]} 25. c7
{[%clk 0:00:43.5]} 25... Qe8 {[%clk 0:01:32.4]} 26. Qxe8 {[%clk 0:00:24.3]}
26... Rxe8 {[%clk 0:01:31.6]} 27. Nxe4 {[%clk 0:00:25.2]} 27... Bd4+ {[%clk
0:01:15.8]} 28. Kh1 {[%clk 0:00:24.4]} 28... Be5 {[%clk 0:01:13.3]} 29. Rf7+
{[%clk 0:00:20.4]} 29... Kg8 {[%clk 0:00:58.8]} 30. Rd7 {[%clk 0:00:15.7]} 30...
Nc6 {[%clk 0:00:54.9]} 31. a5 {[%clk 0:00:12]} 31... d5 {[%clk 0:00:41.7]} 32.
Nxc5 {[%clk 0:00:05.3]} 32... Bxc7 {[%clk 0:00:41.2]} 33. g3 {[%clk 0:00:02.6]}
33... Bxa5 {[%clk 0:00:40.9]} 0-1

[Event "*** Titled Tuesday Blitz"]
[Site "Chess.com"]
[Date "2021.03.09"]
[Round "6"]
[White "crazy_but_lazy"]
[Black "anon102030"]
[Result "0-1"]
[WhiteElo "2506"]
[BlackElo "2691"]
[TimeControl "180+1"]
[EndTime "11:10:15 PST"]
[Termination "anon102030 won by resignation"]

1. d4 {[%clk 0:02:59]} 1... Nf6 {[%clk 0:02:57.4]} 2. c4 {[%clk 0:02:58.6]} 2...
e5 {[%clk 0:02:57.7]} 3. dxe5 {[%clk 0:02:57.8]} 3... Ng4 {[%clk 0:02:58.1]} 4.
e3 {[%clk 0:02:53.9]} 4... Nxe5 {[%clk 0:02:57.2]} 5. f4 {[%clk 0:02:54.4]} 5...
Ng6 {[%clk 0:02:56.9]} 6. h4 {[%clk 0:02:55]} 6... Nxh4 {[%clk 0:02:49.1]} 7.
Nc3 {[%clk 0:02:51.5]} 7... d6 {[%clk 0:02:40.4]} 8. Qc2 {[%clk 0:02:26.5]} 8...
Nf5 {[%clk 0:02:24.4]} 9. Bd3 {[%clk 0:02:25.9]} 9... g6 {[%clk 0:02:16.3]} 10.
Nf3 {[%clk 0:02:14.7]} 10... Ng3 {[%clk 0:02:09.1]} 11. Rh2 {[%clk 0:02:07.5]}
11... Nc6 {[%clk 0:02:04]} 12. a3 {[%clk 0:02:02.7]} 12... Bg7 {[%clk
0:02:00.9]} 13. Bd2 {[%clk 0:01:28]} 13... Be6 {[%clk 0:01:51]} 14. O-O-O {[%clk
0:01:14.8]} 14... h5 {[%clk 0:01:37.2]} 15. Bxg6 {[%clk 0:00:49.9]} 15... Bxc4
{[%clk 0:01:33.3]} 16. Be1 {[%clk 0:00:39.1]} 16... Nf1 {[%clk 0:01:28]} 17.
Rxh5 {[%clk 0:00:15.8]} 17... Nxe3 {[%clk 0:01:13.5]} 18. Qe4+ {[%clk
0:00:12.1]} 18... Qe7 {[%clk 0:01:13.8]} 19. Rxh8+ {[%clk 0:00:09.1]} 19... Bxh8
{[%clk 0:01:14.7]} 20. Bh4 {[%clk 0:00:08.9]} 20... Qxe4 {[%clk 0:01:11]} 21.
Bxe4 {[%clk 0:00:08.9]} 21... Nxd1 {[%clk 0:01:10.6]} 22. Kxd1 {[%clk
0:00:09.1]} 22... Bxc3 {[%clk 0:01:07.7]} 23. bxc3 {[%clk 0:00:08.9]} 23... Kd7
{[%clk 0:01:04.3]} 24. Nd4 {[%clk 0:00:07.3]} 24... Nxd4 {[%clk 0:01:00.6]} 25.
cxd4 {[%clk 0:00:08.2]} 25... c6 {[%clk 0:00:56.2]} 26. Kd2 {[%clk 0:00:04.4]}
26... b5 {[%clk 0:00:54.5]} 27. Bf5+ {[%clk 0:00:04]} 27... Be6 {[%clk
0:00:53.3]} 28. Bd3 {[%clk 0:00:04.6]} 28... a5 {[%clk 0:00:52.8]} 29. f5 {[%clk
0:00:04.5]} 29... Bd5 {[%clk 0:00:52]} 30. g4 {[%clk 0:00:05.4]} 30... b4 {[%clk
0:00:51.1]} 31. axb4 {[%clk 0:00:05.4]} 31... axb4 {[%clk 0:00:52]} 32. g5
{[%clk 0:00:05.6]} 32... Ra2+ {[%clk 0:00:50.5]} 33. Kc1 {[%clk 0:00:05.2]}
33... Rh2 {[%clk 0:00:48.8]} 34. Bg3 {[%clk 0:00:05.1]} 34... Rh3 {[%clk
0:00:45.3]} 35. g6 {[%clk 0:00:03.7]} 35... Rxg3 {[%clk 0:00:44.2]} 36. gxf7
{[%clk 0:00:03.7]} 36... Bxf7 {[%clk 0:00:44.7]} 37. f6 {[%clk 0:00:04.2]} 0-1

[Event "*** Titled Tuesday Blitz"]
[Site "Chess.com"]
[Date "2021.03.09"]
[Round "6"]
[White "Snegokhod"]
[Black "buhomurciano"]
[Result "1-0"]
[WhiteElo "2551"]
[BlackElo "2237"]
[TimeControl "180+1"]
[EndTime "11:10:15 PST"]
[Termination "Snegokhod won on time"]

1. e4 {[%clk 0:02:48.9]} 1... c5 {[%clk 0:02:54.6]} 2. Nf3 {[%clk 0:02:46.7]}
2... d6 {[%clk 0:02:47.9]} 3. d4 {[%clk 0:02:46.2]} 3... cxd4 {[%clk 0:02:48.8]}
4. Qxd4 {[%clk 0:02:46.5]} 4... Nf6 {[%clk 0:02:49.4]} 5. Nc3 {[%clk 0:02:46.3]}
5... g6 {[%clk 0:02:46.2]} 6. e5 {[%clk 0:02:45.3]} 6... dxe5 {[%clk 0:02:44.2]}
7. Qxd8+ {[%clk 0:02:44.7]} 7... Kxd8 {[%clk 0:02:44.1]} 8. Nxe5 {[%clk
0:02:45.3]} 8... Be6 {[%clk 0:02:39.2]} 9. Be3 {[%clk 0:02:40.7]} 9... Nbd7
{[%clk 0:02:34.3]} 10. O-O-O {[%clk 0:02:39.9]} 10... Kc8 {[%clk 0:02:22.7]} 11.
Nxd7 {[%clk 0:02:31.7]} 11... Nxd7 {[%clk 0:02:23.6]} 12. Bd4 {[%clk 0:02:27.7]}
12... f6 {[%clk 0:02:12.6]} 13. Bb5 {[%clk 0:02:24.3]} 13... a6 {[%clk
0:01:53.1]} 14. Ba4 {[%clk 0:02:17.7]} 14... b5 {[%clk 0:01:43.2]} 15. Bb3
{[%clk 0:02:17.6]} 15... Bxb3 {[%clk 0:01:43.3]} 16. axb3 {[%clk 0:02:17.8]}
16... e5 {[%clk 0:01:40.3]} 17. Be3 {[%clk 0:02:16.9]} 17... Bc5 {[%clk
0:01:31.7]} 18. Rd5 {[%clk 0:02:11.4]} 18... Bxe3+ {[%clk 0:01:26.4]} 19. fxe3
{[%clk 0:02:11.7]} 19... Kc7 {[%clk 0:01:20.5]} 20. Rhd1 {[%clk 0:02:10.8]}
20... Rad8 {[%clk 0:01:06.7]} 21. Rd6 {[%clk 0:02:02.5]} 21... Nb6 {[%clk
0:00:43.2]} 22. Rxf6 {[%clk 0:01:59.2]} 22... Rxd1+ {[%clk 0:00:37.6]} 23. Kxd1
{[%clk 0:01:59.3]} 23... Rd8+ {[%clk 0:00:37.3]} 24. Ke2 {[%clk 0:01:59.3]}
24... Rd6 {[%clk 0:00:28.6]} 25. Rf7+ {[%clk 0:01:48.3]} 25... Rd7 {[%clk
0:00:27.3]} 26. Rxd7+ {[%clk 0:01:46.9]} 26... Kxd7 {[%clk 0:00:28.2]} 27. Ne4
{[%clk 0:01:45.3]} 27... Kc6 {[%clk 0:00:19.5]} 28. Ng5 {[%clk 0:01:31]} 28...
h5 {[%clk 0:00:14.4]} 29. Nf3 {[%clk 0:01:30.7]} 29... Kd5 {[%clk 0:00:13.7]}
30. Nh4 {[%clk 0:01:29.7]} 30... g5 {[%clk 0:00:13.6]} 31. Nf5 {[%clk
0:01:27.4]} 31... Ke4 {[%clk 0:00:10.6]} 32. Ng3+ {[%clk 0:01:27.1]} 32... Kd5
{[%clk 0:00:10.6]} 33. Nxh5 {[%clk 0:01:27.3]} 33... e4 {[%clk 0:00:07.6]} 34.
h3 {[%clk 0:01:19.4]} 34... Ke5 {[%clk 0:00:07]} 35. Ng3 {[%clk 0:01:13.9]}
35... Nd5 {[%clk 0:00:06.5]} 36. c3 {[%clk 0:01:12.5]} 36... Nb6 {[%clk
0:00:03.7]} 37. Nf1 {[%clk 0:01:06.6]} 37... a5 {[%clk 0:00:03.3]} 38. Kd2
{[%clk 0:01:01]} 38... a4 {[%clk 0:00:03.1]} 39. Kc2 {[%clk 0:01:00.7]} 39...
Nd5 {[%clk 0:00:01.1]} 40. bxa4 {[%clk 0:00:56.7]} 1-0

[Event "*** Titled Tuesday Blitz"]
[Site "Chess.com"]
[Date "2021.03.09"]
[Round "6"]
[White "Kostukov_Alex"]
[Black "Bastiandash"]
[Result "0-1"]
[WhiteElo "2317"]
[BlackElo "2469"]
[TimeControl "180+1"]
[EndTime "11:10:16 PST"]
[Termination "Bastiandash won on time"]

1. g3 {[%clk 0:03:00.9]} 1... d5 {[%clk 0:02:57.5]} 2. Bg2 {[%clk 0:03:00.2]}
2... c6 {[%clk 0:02:58.4]} 3. d3 {[%clk 0:02:59.8]} 3... Nf6 {[%clk 0:02:53.4]}
4. e4 {[%clk 0:02:59.5]} 4... dxe4 {[%clk 0:02:52.1]} 5. dxe4 {[%clk 0:02:59.8]}
5... Qxd1+ {[%clk 0:02:53]} 6. Kxd1 {[%clk 0:03:00.3]} 6... e5 {[%clk
0:02:40.2]} 7. f3 {[%clk 0:02:59.8]} 7... Bd6 {[%clk 0:02:39.6]} 8. Be3 {[%clk
0:02:58.5]} 8... Ke7 {[%clk 0:02:39.2]} 9. Nd2 {[%clk 0:02:58.4]} 9... Nbd7
{[%clk 0:02:39.6]} 10. Nc4 {[%clk 0:02:36.2]} 10... Bc7 {[%clk 0:02:33.6]} 11.
a4 {[%clk 0:02:31.5]} 11... b6 {[%clk 0:02:30.7]} 12. c3 {[%clk 0:02:26.1]}
12... Bb7 {[%clk 0:02:28.1]} 13. b4 {[%clk 0:02:22.9]} 13... Rhd8 {[%clk
0:02:23.3]} 14. Kc2 {[%clk 0:02:19.8]} 14... Ba6 {[%clk 0:02:19.6]} 15. Bf1
{[%clk 0:02:17.1]} 15... Nf8 {[%clk 0:02:02]} 16. Nxe5 {[%clk 0:01:19.4]} 16...
Bxf1 {[%clk 0:01:44.9]} 17. Nxc6+ {[%clk 0:01:19.4]} 17... Kd7 {[%clk
0:01:44.9]} 18. Nxd8 {[%clk 0:01:14.9]} 18... Bg2 {[%clk 0:01:44.4]} 19. Rd1+
{[%clk 0:00:53.1]} 19... Ke8 {[%clk 0:01:28.3]} 20. Nc6 {[%clk 0:00:36.6]} 20...
Bxh1 {[%clk 0:01:24.1]} 21. Kd2 {[%clk 0:00:22.3]} 21... Ng6 {[%clk 0:00:52.6]}
22. Ke2 {[%clk 0:00:22.1]} 22... Nd7 {[%clk 0:00:51]} 23. Kf2 {[%clk 0:00:18.4]}
23... Nde5 {[%clk 0:00:51.1]} 24. Nd4 {[%clk 0:00:12.4]} 24... Rd8 {[%clk
0:00:45.5]} 25. Nh3 {[%clk 0:00:10.9]} 25... Bxf3 {[%clk 0:00:44.2]} 26. Re1
{[%clk 0:00:02.9]} 26... Nd3+ {[%clk 0:00:42.4]} 27. Kxf3 {[%clk 0:00:02.2]}
27... Nxe1+ {[%clk 0:00:43.3]} 28. Ke2 {[%clk 0:00:03.1]} 28... Ng2 {[%clk
0:00:42.3]} 29. Ng5 {[%clk 0:00:04]} 29... Nxe3 {[%clk 0:00:42.3]} 30. Kxe3
{[%clk 0:00:04.9]} 30... h6 {[%clk 0:00:42.1]} 31. Ngf3 {[%clk 0:00:05.4]} 31...
Be5 {[%clk 0:00:41.9]} 32. Nf5 {[%clk 0:00:04.8]} 32... Bxc3 {[%clk 0:00:41.3]}
33. h4 {[%clk 0:00:03.7]} 33... Kf8 {[%clk 0:00:39.6]} 0-1

[Event "*** Titled Tuesday Blitz"]
[Site "Chess.com"]
[Date "2021.03.09"]
[Round "6"]
[White "eduardoperalta"]
[Black "enriquebutti"]
[Result "1-0"]
[WhiteElo "2535"]
[BlackElo "2222"]
[TimeControl "180+1"]
[EndTime "11:10:18 PST"]
[Termination "eduardoperalta won by resignation"]

1. d4 {[%clk 0:03:00.9]} 1... Nf6 {[%clk 0:02:58.1]} 2. c4 {[%clk 0:03:00.2]}
2... e6 {[%clk 0:02:57.7]} 3. Nf3 {[%clk 0:02:59.6]} 3... b6 {[%clk 0:02:56]} 4.
g3 {[%clk 0:02:57.3]} 4... Ba6 {[%clk 0:02:54.9]} 5. Qc2 {[%clk 0:02:56.2]} 5...
c5 {[%clk 0:02:51.2]} 6. d5 {[%clk 0:02:50.6]} 6... exd5 {[%clk 0:02:41]} 7.
cxd5 {[%clk 0:02:38.3]} 7... Bb7 {[%clk 0:02:35.4]} 8. Bg2 {[%clk 0:02:29.9]}
8... d6 {[%clk 0:02:26.8]} 9. Nc3 {[%clk 0:02:27.4]} 9... g6 {[%clk 0:02:25.7]}
10. O-O {[%clk 0:02:26.8]} 10... Bg7 {[%clk 0:02:24.9]} 11. e4 {[%clk
0:02:26.6]} 11... Kf8 {[%clk 0:02:23.8]} 12. a4 {[%clk 0:02:25.8]} 12... a6
{[%clk 0:02:22.9]} 13. Bg5 {[%clk 0:02:24.2]} 13... h6 {[%clk 0:02:21.9]} 14.
Bf4 {[%clk 0:02:23.7]} 14... Nh5 {[%clk 0:02:17.2]} 15. Be3 {[%clk 0:02:20.8]}
15... Nd7 {[%clk 0:02:16.3]} 16. Rad1 {[%clk 0:02:19.4]} 16... Kg8 {[%clk
0:02:10.8]} 17. h3 {[%clk 0:02:19.1]} 17... Kh7 {[%clk 0:02:09.4]} 18. Rfe1
{[%clk 0:02:19]} 18... Re8 {[%clk 0:02:07.1]} 19. Kh2 {[%clk 0:02:18.1]} 19...
Nhf6 {[%clk 0:02:00.4]} 20. Nd2 {[%clk 0:02:16.5]} 20... Ng8 {[%clk 0:01:55.6]}
21. f4 {[%clk 0:02:13.9]} 21... Qb8 {[%clk 0:01:49.3]} 22. Nc4 {[%clk
0:02:10.5]} 22... Ngf6 {[%clk 0:01:43.2]} 23. Bc1 {[%clk 0:02:07.3]} 23... Bf8
{[%clk 0:01:36.7]} 24. g4 {[%clk 0:02:03.5]} 24... Bc8 {[%clk 0:01:27.2]} 25. e5
{[%clk 0:01:43.5]} 25... dxe5 {[%clk 0:01:25.8]} 26. d6 {[%clk 0:01:43]} 26...
exf4 {[%clk 0:01:18.7]} 27. Bxf4 {[%clk 0:01:38.9]} 27... Bb7 {[%clk 0:01:14.3]}
28. Rf1 {[%clk 0:01:30.1]} 28... b5 {[%clk 0:01:07.8]} 29. axb5 {[%clk
0:01:25.9]} 29... axb5 {[%clk 0:01:06.9]} 30. Ne3 {[%clk 0:01:21.7]} 30... b4
{[%clk 0:01:01.2]} 31. Bxb7 {[%clk 0:01:07.9]} 31... Qxb7 {[%clk 0:00:59.9]} 32.
Ncd5 {[%clk 0:01:07.4]} 32... Bg7 {[%clk 0:00:48.7]} 33. Nc7 {[%clk 0:00:55.3]}
33... Rac8 {[%clk 0:00:40]} 34. Nxe8 {[%clk 0:00:54.3]} 34... Rxe8 {[%clk
0:00:39.4]} 35. Nc4 {[%clk 0:00:53.2]} 35... Ne4 {[%clk 0:00:34]} 36. Rde1
{[%clk 0:00:50.1]} 36... Ndf6 {[%clk 0:00:33.2]} 37. Qd3 {[%clk 0:00:44.1]}
37... Qd7 {[%clk 0:00:31.7]} 38. Be5 {[%clk 0:00:34.6]} 1-0

[Event "*** Titled Tuesday Blitz"]
[Site "Chess.com"]
[Date "2021.03.09"]
[Round "6"]
[White "Margency"]
[Black "Msb2"]
[Result "0-1"]
[WhiteElo "2704"]
[BlackElo "2909"]
[TimeControl "180+1"]
[EndTime "11:10:23 PST"]
[Termination "Msb2 won by checkmate"]

1. e4 {[%clk 0:03:00.9]} 1... e6 {[%clk 0:02:58.4]} 2. d4 {[%clk 0:03:00.9]}
2... d5 {[%clk 0:02:58.6]} 3. exd5 {[%clk 0:03:01.6]} 3... exd5 {[%clk
0:02:59.5]} 4. c4 {[%clk 0:03:02.5]} 4... Bb4+ {[%clk 0:02:58.9]} 5. Nc3 {[%clk
0:03:03.4]} 5... Ne7 {[%clk 0:02:59.4]} 6. Bd3 {[%clk 0:03:03.8]} 6... dxc4
{[%clk 0:02:57]} 7. Bxc4 {[%clk 0:03:04.7]} 7... O-O {[%clk 0:02:57.4]} 8. Nf3
{[%clk 0:03:05.3]} 8... Nd5 {[%clk 0:02:56.1]} 9. O-O {[%clk 0:02:59.7]} 9...
Bxc3 {[%clk 0:02:30]} 10. bxc3 {[%clk 0:02:59.3]} 10... Nc6 {[%clk 0:02:30.6]}
11. Qd3 {[%clk 0:02:49.9]} 11... h6 {[%clk 0:02:26.7]} 12. Bb3 {[%clk
0:02:46.8]} 12... Bg4 {[%clk 0:02:12.1]} 13. Re1 {[%clk 0:02:40.2]} 13... Qd6
{[%clk 0:02:04.8]} 14. Ne5 {[%clk 0:02:13.1]} 14... Be6 {[%clk 0:01:53.1]} 15.
f4 {[%clk 0:02:05]} 15... f6 {[%clk 0:01:25.1]} 16. Bc2 {[%clk 0:01:52.9]} 16...
f5 {[%clk 0:01:21.9]} 17. Bd2 {[%clk 0:01:29.4]} 17... Nb6 {[%clk 0:01:12.7]}
18. Re2 {[%clk 0:01:09.5]} 18... Nxe5 {[%clk 0:01:06.3]} 19. Rxe5 {[%clk
0:01:01.6]} 19... Nc4 {[%clk 0:00:54.4]} 20. Re2 {[%clk 0:00:52.9]} 20... Bd5
{[%clk 0:00:50.5]} 21. Rae1 {[%clk 0:00:50.5]} 21... b5 {[%clk 0:00:50.5]} 22.
Bc1 {[%clk 0:00:48.9]} 22... a5 {[%clk 0:00:44.2]} 23. Qh3 {[%clk 0:00:45.7]}
23... Qf6 {[%clk 0:00:40.1]} 24. Re7 {[%clk 0:00:36.6]} 24... Nd6 {[%clk
0:00:25.4]} 25. Ba3 {[%clk 0:00:20.5]} 25... b4 {[%clk 0:00:24.7]} 26. cxb4
{[%clk 0:00:20]} 26... axb4 {[%clk 0:00:25.2]} 27. Bxb4 {[%clk 0:00:20]} 27...
Qxd4+ {[%clk 0:00:25.5]} 28. Kh1 {[%clk 0:00:16.9]} 28... Qxb4 {[%clk
0:00:25.4]} 29. Qg3 {[%clk 0:00:12.2]} 29... Rf7 {[%clk 0:00:25.8]} 30. Bb3
{[%clk 0:00:11.3]} 30... Bxb3 {[%clk 0:00:23.5]} 31. axb3 {[%clk 0:00:12.2]}
31... Rxe7 {[%clk 0:00:22.2]} 32. Rxe7 {[%clk 0:00:13.1]} 32... Ra1+ {[%clk
0:00:22.4]} 33. Re1 {[%clk 0:00:13.7]} 33... Rxe1+ {[%clk 0:00:22.5]} 34. Qxe1
{[%clk 0:00:14]} 34... Qxe1# {[%clk 0:00:23.4]} 0-1

[Event "*** Titled Tuesday Blitz"]
[Site "Chess.com"]
[Date "2021.03.09"]
[Round "6"]
[White "Vesper2018"]
[Black "Cambek64"]
[Result "0-1"]
[WhiteElo "2578"]
[BlackElo "2420"]
[TimeControl "180+1"]
[EndTime "11:10:23 PST"]
[Termination "Cambek64 won by resignation"]

1. e4 {[%clk 0:03:00.9]} 1... e6 {[%clk 0:02:58.7]} 2. d4 {[%clk 0:03:00.2]}
2... d5 {[%clk 0:02:59.3]} 3. e5 {[%clk 0:03:00.7]} 3... c5 {[%clk 0:02:58.9]}
4. c3 {[%clk 0:03:01]} 4... Nc6 {[%clk 0:02:59.3]} 5. Nf3 {[%clk 0:03:01.6]}
5... Bd7 {[%clk 0:02:59.9]} 6. Be2 {[%clk 0:02:58.7]} 6... Rc8 {[%clk
0:03:00.4]} 7. O-O {[%clk 0:02:57.5]} 7... cxd4 {[%clk 0:02:59.3]} 8. cxd4
{[%clk 0:02:56.6]} 8... Nge7 {[%clk 0:02:59.8]} 9. b3 {[%clk 0:02:46.2]} 9...
Nf5 {[%clk 0:02:59]} 10. Bb2 {[%clk 0:02:45.8]} 10... Qb6 {[%clk 0:02:51.4]} 11.
g4 {[%clk 0:02:42.3]} 11... Nfe7 {[%clk 0:02:47.5]} 12. Qd2 {[%clk 0:02:34]}
12... h5 {[%clk 0:02:40.7]} 13. h3 {[%clk 0:02:22.9]} 13... Ng6 {[%clk
0:02:37.9]} 14. g5 {[%clk 0:02:14.9]} 14... Bb4 {[%clk 0:02:26.6]} 15. Nc3
{[%clk 0:02:14]} 15... Nce7 {[%clk 0:02:02.2]} 16. a3 {[%clk 0:02:04.9]} 16...
Bxc3 {[%clk 0:02:00]} 17. Bxc3 {[%clk 0:02:05]} 17... Bb5 {[%clk 0:01:59.8]} 18.
Ba5 {[%clk 0:01:32.7]} 18... Qa6 {[%clk 0:01:57.8]} 19. Bxb5+ {[%clk 0:01:33.2]}
19... Qxb5 {[%clk 0:01:56.1]} 20. Rfc1 {[%clk 0:01:33.2]} 20... O-O {[%clk
0:01:54.2]} 21. Bb4 {[%clk 0:01:26.1]} 21... a5 {[%clk 0:01:48.5]} 22. Bxa5
{[%clk 0:01:05.6]} 22... Qxb3 {[%clk 0:01:48.3]} 23. Bc3 {[%clk 0:00:56.1]}
23... Qa4 {[%clk 0:01:38.3]} 24. Rab1 {[%clk 0:00:53.2]} 24... Qxa3 {[%clk
0:01:29.4]} 25. Rxb7 {[%clk 0:00:48.3]} 25... Nf5 {[%clk 0:01:29.9]} 26. Qb2
{[%clk 0:00:33.3]} 26... Qa6 {[%clk 0:01:10.7]} 27. Rb5 {[%clk 0:00:32.2]} 27...
Rc4 {[%clk 0:01:08.1]} 28. Ra1 {[%clk 0:00:24.9]} 28... Qc8 {[%clk 0:01:05.5]}
29. Rb3 {[%clk 0:00:24.7]} 29... Nf4 {[%clk 0:01:01.8]} 30. Qd2 {[%clk
0:00:21.4]} 30... Rxc3 {[%clk 0:00:58.4]} 31. Rxc3 {[%clk 0:00:08.2]} 31... Qxc3
{[%clk 0:00:54.8]} 32. Qxc3 {[%clk 0:00:08.4]} 32... Ne2+ {[%clk 0:00:53.9]} 33.
Kf1 {[%clk 0:00:08.7]} 33... Nxc3 {[%clk 0:00:54.5]} 34. Ra3 {[%clk 0:00:07.5]}
34... Nb5 {[%clk 0:00:51.9]} 35. Ra4 {[%clk 0:00:07.7]} 35... g6 {[%clk
0:00:50.6]} 36. Rb4 {[%clk 0:00:07]} 36... Na7 {[%clk 0:00:48.2]} 37. Rb7 {[%clk
0:00:06]} 37... Nc6 {[%clk 0:00:47.6]} 0-1

[Event "*** Titled Tuesday Blitz"]
[Site "Chess.com"]
[Date "2021.03.09"]
[Round "6"]
[White "HrvojeZagreb"]
[Black "boasovietica"]
[Result "0-1"]
[WhiteElo "2269"]
[BlackElo "2442"]
[TimeControl "180+1"]
[EndTime "11:10:23 PST"]
[Termination "boasovietica won by checkmate"]

1. d4 {[%clk 0:03:00.9]} 1... Nf6 {[%clk 0:02:58.5]} 2. Bf4 {[%clk 0:03:00.4]}
2... g6 {[%clk 0:02:54.9]} 3. Nc3 {[%clk 0:02:59.8]} 3... Bg7 {[%clk 0:02:53.7]}
4. e4 {[%clk 0:02:58.6]} 4... O-O {[%clk 0:02:52.5]} 5. Qd2 {[%clk 0:02:58.6]}
5... c5 {[%clk 0:02:49.4]} 6. d5 {[%clk 0:02:50.4]} 6... d6 {[%clk 0:02:46.1]}
7. O-O-O {[%clk 0:02:46.9]} 7... b5 {[%clk 0:02:37.4]} 8. f3 {[%clk 0:02:33.1]}
8... b4 {[%clk 0:02:32]} 9. Nb1 {[%clk 0:02:33.1]} 9... Nbd7 {[%clk 0:02:17]}
10. Bh6 {[%clk 0:02:31.3]} 10... Bh8 {[%clk 0:02:11.3]} 11. Bxf8 {[%clk
0:02:19.8]} 11... Kxf8 {[%clk 0:02:07.4]} 12. g4 {[%clk 0:02:16.4]} 12... Rb8
{[%clk 0:02:01.9]} 13. g5 {[%clk 0:02:03.6]} 13... Nh5 {[%clk 0:01:54.2]} 14. f4
{[%clk 0:02:00.4]} 14... Qa5 {[%clk 0:01:47.3]} 15. a3 {[%clk 0:01:44.3]} 15...
Bxb2+ {[%clk 0:01:08.3]} 16. Kxb2 {[%clk 0:01:45.2]} 16... bxa3+ {[%clk
0:01:08.3]} 17. Ka1 {[%clk 0:01:42.9]} 17... Rxb1+ {[%clk 0:01:01.6]} 18. Ka2
{[%clk 0:01:06.5]} 18... Rb2+ {[%clk 0:00:49.2]} 19. Ka1 {[%clk 0:01:06]} 19...
Rb1+ {[%clk 0:00:34.5]} 20. Ka2 {[%clk 0:01:05.4]} 20... Qxd2 {[%clk 0:00:34.8]}
21. Rxd2 {[%clk 0:01:04.5]} 21... Rxf1 {[%clk 0:00:35.4]} 22. f5 {[%clk
0:00:48.4]} 22... Ne5 {[%clk 0:00:30]} 23. fxg6 {[%clk 0:00:40.5]} 23... hxg6
{[%clk 0:00:28.9]} 24. h4 {[%clk 0:00:33.6]} 24... Ng3 {[%clk 0:00:27.4]} 25.
Rhh2 {[%clk 0:00:30.6]} 25... Rxg1 {[%clk 0:00:27]} 26. Rhg2 {[%clk 0:00:29.9]}
26... Rxg2 {[%clk 0:00:27]} 27. Rxg2 {[%clk 0:00:30.6]} 27... Nxe4 {[%clk
0:00:27.3]} 28. Kxa3 {[%clk 0:00:28.4]} 28... Ba6 {[%clk 0:00:26.8]} 29. Ka4
{[%clk 0:00:27.1]} 29... Bc4 {[%clk 0:00:26]} 30. Rh2 {[%clk 0:00:22.5]} 30...
Bxd5 {[%clk 0:00:24.6]} 31. h5 {[%clk 0:00:22.1]} 31... gxh5 {[%clk 0:00:23.7]}
32. Rxh5 {[%clk 0:00:23]} 32... Nc3+ {[%clk 0:00:23.2]} 33. Ka5 {[%clk
0:00:22.5]} 33... Bb7 {[%clk 0:00:17]} 34. Rh8+ {[%clk 0:00:20.5]} 34... Kg7
{[%clk 0:00:17]} 35. Rb8 {[%clk 0:00:21.4]} 35... Nc4# {[%clk 0:00:16.8]} 0-1

[Event "*** Titled Tuesday Blitz"]
[Site "Chess.com"]
[Date "2021.03.09"]
[Round "6"]
[White "mbojan"]
[Black "marianokar"]
[Result "1-0"]
[WhiteElo "2630"]
[BlackElo "2480"]
[TimeControl "180+1"]
[EndTime "11:10:24 PST"]
[Termination "mbojan won by resignation"]

1. g3 {[%clk 0:03:00.9]} 1... d5 {[%clk 0:02:59.3]} 2. Bg2 {[%clk 0:03:01.5]}
2... e6 {[%clk 0:02:58.8]} 3. d3 {[%clk 0:03:02.1]} 3... Nf6 {[%clk 0:02:58.1]}
4. Nd2 {[%clk 0:03:02.8]} 4... Be7 {[%clk 0:02:58.6]} 5. e4 {[%clk 0:03:03.5]}
5... O-O {[%clk 0:02:59.1]} 6. Nh3 {[%clk 0:03:03.6]} 6... c5 {[%clk 0:02:58.6]}
7. O-O {[%clk 0:03:03.9]} 7... Nc6 {[%clk 0:02:58.2]} 8. f4 {[%clk 0:03:04.4]}
8... b5 {[%clk 0:02:51]} 9. Nf2 {[%clk 0:03:02.9]} 9... Bb7 {[%clk 0:02:48.2]}
10. e5 {[%clk 0:02:46.4]} 10... Nd7 {[%clk 0:02:47.5]} 11. c4 {[%clk 0:02:46.7]}
11... bxc4 {[%clk 0:02:37]} 12. dxc4 {[%clk 0:02:46.4]} 12... Nb6 {[%clk
0:02:37.6]} 13. cxd5 {[%clk 0:02:41]} 13... exd5 {[%clk 0:02:32.1]} 14. Nf3
{[%clk 0:02:35.5]} 14... Re8 {[%clk 0:02:21.8]} 15. h4 {[%clk 0:02:31.7]} 15...
Bf8 {[%clk 0:02:18.9]} 16. g4 {[%clk 0:02:30.3]} 16... Qd7 {[%clk 0:02:10]} 17.
g5 {[%clk 0:02:27.4]} 17... Rad8 {[%clk 0:02:07]} 18. h5 {[%clk 0:02:27.4]}
18... Qc7 {[%clk 0:01:42.7]} 19. Ng4 {[%clk 0:02:17.8]} 19... Bc8 {[%clk
0:01:33.7]} 20. Nh4 {[%clk 0:02:13.6]} 20... d4 {[%clk 0:00:59.2]} 21. g6 {[%clk
0:01:16.8]} 21... hxg6 {[%clk 0:00:55.5]} 22. hxg6 {[%clk 0:01:17]} 22... Nd5
{[%clk 0:00:41.3]} 23. Qf3 {[%clk 0:00:42.5]} 23... fxg6 {[%clk 0:00:19.7]} 24.
Nxg6 {[%clk 0:00:39.1]} 24... Qf7 {[%clk 0:00:20.6]} 25. f5 {[%clk 0:00:36.2]}
25... Bxf5 {[%clk 0:00:18]} 26. Qxf5 {[%clk 0:00:36]} 26... Qxf5 {[%clk
0:00:18.6]} 27. Rxf5 {[%clk 0:00:36.7]} 27... Ncb4 {[%clk 0:00:13.9]} 28. Bg5
{[%clk 0:00:32.2]} 28... Rd7 {[%clk 0:00:11.9]} 29. a3 {[%clk 0:00:31.2]} 29...
Nc2 {[%clk 0:00:11.3]} 30. e6 {[%clk 0:00:24.5]} 30... Rxe6 {[%clk 0:00:06.7]}
31. Nxf8 {[%clk 0:00:24.4]} 1-0